bitfinex/quotes_BTCUSD_20250408
["timestamp","ask_amount","ask_price","bid_price","bid_amount"]
[1744088084733,0.261527,80298.0,80296.0,0.00405214]
[1744088084929,0.261527,80298.0,80296.0,0.00305214]
[1744088085358,0.261527,80298.0,80296.0,0.00605214]
[1744088085536,0.012453,80298.0,80296.0,0.00605214]
[1744088085960,0.3784597,80299.0,80296.0,0.00305214]
[1744088086167,0.3909127,80299.0,80296.0,0.00605214]
[1744088086746,0.012453,80300.0,80296.0,0.25513014]
[1744088086946,0.012453,80300.0,80296.0,0.00305214]
[1744088087806,0.249069,80299.0,80296.0,5.214e-05]
[1744088088233,0.249069,80299.0,80296.0,0.00605214]
[1744088088430,0.249069,80299.0,80296.0,0.00305214]
[1744088088975,0.249069,80299.0,80296.0,0.00505214]
[1744088089195,0.249069,80299.0,80296.0,0.00305214]
[1744088089398,0.24905,80306.0,80299.0,0.012453]
[1744088089542,0.249062,80302.0,80296.0,0.00605214]
[1744088090051,0.261514,80302.0,80296.0,0.01850514]
[1744088090256,0.261514,80302.0,80296.0,0.01550514]
[1744088090605,0.261514,80302.0,80296.0,0.26458014]
[1744088090903,0.261514,80302.0,80297.0,0.261525]
[1744088092017,0.012453,80297.0,80296.0,5.214e-05]
[1744088092215,0.1418417,80297.0,80296.0,5.214e-05]
[1744088092396,0.1418417,80297.0,80296.0,0.00105214]
[1744088092597,0.1418417,80297.0,80296.0,5.214e-05]
[1744088093161,0.1418417,80297.0,80296.0,0.00405214]
[1744088094810,0.1293887,80297.0,80296.0,0.00805214]
[1744088095012,0.4118,80309.0,80308.0,0.261493]
[1744088095176,0.02508138,80326.0,80316.0,0.01245]
[1744088095376,0.249034,80311.0,80309.0,0.0476]
[1744088095580,0.01245,80315.0,80309.0,0.0476]
[1744088095881,0.01245,80315.0,80310.0,0.00944]
[1744088095882,0.1293887,80314.0,80310.0,0.00944]
[1744088096118,0.1418397,80314.0,80310.0,0.00944]
[1744088096855,0.1293887,80314.0,80310.0,0.00944]
[1744088097011,0.1293887,80314.0,80310.0,0.021891]
[1744088097457,0.1293887,80314.0,80310.0,0.012451]
[1744088098033,0.1293887,80314.0,80311.0,0.249031]
[1744088098354,0.1293887,80314.0,80311.0,0.261482]
[1744088098502,0.1293887,80314.0,80313.0,0.261476]
[1744088099549,0.012449,80324.0,80311.0,0.265482]
[1744088099550,0.01245,80318.0,80311.0,0.265482]
[1744088099754,0.249022,80314.0,80313.0,0.002]
[1744088099945,0.1293887,80314.0,80313.0,0.002]
[1744088100344,0.248996,80323.0,80317.0,0.01245]
[1744088100596,0.1418387,80321.0,80315.0,0.01245]
[1744088100938,0.01245,80320.0,80315.0,0.01245]
[1744088101140,0.3783957,80319.0,80315.0,0.01245]
[1744088101542,0.3908457,80319.0,80314.0,0.012451]
[1744088101768,0.01245,80316.0,80311.0,0.249031]
[1744088101963,0.01245,80318.0,80313.0,0.249025]
[1744088102169,0.1293887,80318.0,80316.0,0.01245]
[1744088102767,0.1418387,80318.0,80312.0,0.012451]
[1744088103011,0.3908487,80318.0,80312.0,0.012451]
[1744088103524,0.1293887,80318.0,80314.0,0.249021]
[1744088104149,0.1293887,80318.0,80314.0,0.012451]
[1744088104326,0.1293887,80318.0,80313.0,0.012451]
[1744088104626,0.1418387,80318.0,80313.0,0.012451]
[1744088105193,0.01245,80315.0,80309.0,0.309088]
[1744088105594,0.249013,80317.0,80310.0,0.0617384]
[1744088105793,0.01245,80316.0,80309.0,0.309088]
[1744088106527,0.01245,80316.0,80310.0,0.012451]
[1744088107493,0.249019,80315.0,80310.0,0.012451]
[1744088107914,0.249019,80315.0,80309.0,0.309088]
[1744088107915,0.249025,80313.0,80309.0,0.0476]
[1744088108135,0.012451,80314.0,80309.0,0.0476]
[1744088108439,0.1293887,80318.0,80313.0,0.249023]
[1744088108646,0.3783987,80318.0,80313.0,0.249023]
[1744088108838,0.3908487,80318.0,80313.0,0.261474]
[1744088109041,0.249016,80316.0,80312.0,0.012451]
[1744088109386,0.01245,80317.0,80312.0,0.012451]
[1744088109736,0.01245,80317.0,80312.0,0.261476]
[1744088110320,0.01245,80317.0,80312.0,0.262476]
[1744088110941,0.261466,80317.0,80312.0,0.013451]
[1744088111147,0.01245,80317.0,80312.0,0.014451]
[1744088111643,0.01245,80317.0,80312.0,0.012451]
[1744088112049,0.01245,80317.0,80312.0,0.014451]
[1744088115363,0.261472,80315.0,80312.0,0.002]
[1744088115638,0.261476,80313.0,80312.0,0.002]
[1744088115755,0.8026647,80313.0,80312.0,0.002]
[1744088115947,0.81720555,80313.0,80312.0,0.002]
[1744088116151,0.81720555,80313.0,80312.0,0.001]
[1744088116556,0.81720555,80313.0,80312.0,0.003]
[1744088116772,0.81720555,80313.0,80312.0,0.001]
[1744088117165,0.261526,80298.0,80296.0,5.214e-05]
[1744088117402,0.3909147,80298.0,80296.0,5.214e-05]
[1744088118331,0.159451,80309.0,80304.0,0.012452]
[1744088118622,0.5411887,80306.0,80302.0,0.012452]
[1744088119332,0.5411887,80306.0,80301.0,0.24906]
[1744088119900,0.5411887,80306.0,80300.0,0.012453]
[1744088119901,0.24905,80305.0,80300.0,0.261518]
[1744088120115,0.5536407,80306.0,80301.0,0.012453]
[1744088121457,0.5411887,80306.0,80305.0,0.012452]
[1744088121664,0.012451,80310.0,80306.0,0.0452]
[1744088121867,0.012452,80308.0,80306.0,0.0452]
[1744088122027,0.249044,80307.0,80306.0,0.0452]
[1744088122214,0.249044,80307.0,80306.0,0.04494137]
[1744088122410,0.261496,80307.0,80306.0,0.04494137]
[1744088123407,0.3908847,80307.0,80306.0,0.04494137]
[1744088124028,0.1293887,80307.0,80306.0,0.04494137]
[1744088124508,0.1303887,80307.0,80306.0,0.04494137]
[1744088126102,0.3794327,80307.0,80306.0,0.04494137]
[1744088126308,0.3918847,80307.0,80306.0,0.04494137]
[1744088127845,0.001,80307.0,80306.0,0.71537911]
[1744088128023,0.001,80307.0,80306.0,0.72783111]
[1744088129343,0.1468,80329.0,80325.0,0.248988]
[1744088129527,0.1293887,80326.0,80325.0,0.248988]
[1744088129731,0.14062917,80326.0,80325.0,0.261437]
[1744088130513,0.14067618,80326.0,80325.0,0.261437]
[1744088130722,0.14967618,80326.0,80325.0,0.002]
[1744088136676,0.02028748,80326.0,80325.0,0.0609982]
[1744088137006,0.02028748,80326.0,80325.0,0.014449]
[1744088137641,0.01428748,80326.0,80325.0,0.013449]
[1744088137876,0.02028748,80326.0,80325.0,0.014449]
[1744088138433,0.01728748,80326.0,80325.0,0.013449]
[1744088138670,0.02028748,80326.0,80325.0,0.013449]
[1744088139256,0.01428748,80326.0,80325.0,0.012449]
[1744088140492,0.01728748,80326.0,80325.0,0.012449]
[1744088147239,0.00604701,80326.0,80325.0,0.062249]
[1744088147424,0.00604701,80326.0,80325.0,0.45153866]
[1744088147629,0.00604701,80326.0,80325.0,0.449049]
[1744088148037,0.0001682,80331.0,80330.0,0.26142]
[1744088148239,0.0001682,80331.0,80330.0,0.8274087]
[1744088149256,0.0001682,80331.0,80330.0,0.8344087]
[1744088149443,0.0001682,80331.0,80330.0,0.8274087]
[1744088149752,0.0001682,80331.0,80330.0,0.8364087]
[1744088150090,0.0001682,80331.0,80330.0,0.8444087]
[1744088150759,0.006,80349.0,80341.0,0.601384]
[1744088150945,0.00021003,80342.0,80341.0,0.697984]
[1744088152482,0.00021003,80342.0,80341.0,0.703984]
[1744088153121,0.00021003,80342.0,80341.0,0.709984]
[1744088153806,0.00021003,80342.0,80341.0,0.78242394]
[1744088154103,0.00021003,80342.0,80341.0,0.709984]
[1744088154465,0.00021003,80342.0,80341.0,0.660184]
[1744088154664,0.00021003,80342.0,80341.0,0.654184]
[1744088154895,0.00021003,80342.0,80341.0,0.660184]
[1744088164499,0.00021003,80342.0,80341.0,0.3988]
[1744088164758,0.00021003,80342.0,80341.0,0.660184]
[1744088165626,0.00021003,80342.0,80341.0,0.012]
[1744088166118,0.00021003,80342.0,80338.0,0.261393]
[1744088166356,0.00021003,80342.0,80341.0,0.005]
[1744088166603,0.00021003,80342.0,80341.0,0.01]
[1744088166830,0.00021003,80342.0,80341.0,0.005]
[1744088167294,0.00021003,80342.0,80341.0,0.009]
[1744088167987,0.00021003,80342.0,80341.0,0.004]
[1744088168218,0.00021003,80342.0,80341.0,0.269384]
[1744088169585,0.00021003,80342.0,80341.0,0.020446]
[1744088170023,0.00021003,80342.0,80341.0,0.008]
[1744088170613,0.00021003,80342.0,80341.0,0.020446]
[1744088176518,0.00021003,80342.0,80341.0,0.02293525]
[1744088176729,0.00021003,80342.0,80341.0,0.020446]
[1744088176959,0.00021003,80342.0,80341.0,0.02293513]
[1744088177078,0.00021003,80342.0,80341.0,0.07003513]
[1744088177506,0.00021003,80342.0,80341.0,0.067546]
[1744088178037,0.00021003,80342.0,80341.0,0.11513514]
[1744088178536,0.00021003,80342.0,80341.0,0.112646]
[1744088179146,0.00021003,80342.0,80341.0,0.065546]
[1744088181806,0.00021003,80342.0,80341.0,0.06803499]
[1744088182008,0.00021003,80342.0,80341.0,0.40803499]
[1744088182161,3e-08,80342.0,80341.0,0.5832347]
[1744088182487,2.3e-07,80359.0,80357.0,0.012444]
[1744088182687,2.3e-07,80359.0,80358.0,0.57872091]
[1744088182886,4.216e-05,80359.0,80358.0,0.5762327]
[1744088185235,4.216e-05,80359.0,80358.0,0.5852327]
[1744088185449,3.6e-07,80364.0,80363.0,0.601313]
[1744088185582,3.6e-07,80364.0,80363.0,1.22844255]
[1744088185782,0.1101055,80403.0,80378.0,0.601265]
[1744088185783,2e-07,80379.0,80378.0,0.601265]
[1744088185984,2e-07,80379.0,80378.0,0.8766137]
[1744088186239,2e-07,80379.0,80378.0,0.9246137]
[1744088186645,2e-07,80379.0,80378.0,0.8766137]
[1744088187018,2e-07,80379.0,80378.0,0.747225]
[1744088188273,2e-07,80379.0,80378.0,0.756225]
[1744088188682,2e-07,80379.0,80378.0,0.747225]
[1744088189015,2e-07,80379.0,80378.0,0.751225]
[1744088189215,2e-07,80379.0,80378.0,0.747225]
[1744088189416,2e-07,80379.0,80378.0,0.754225]
[1744088189657,2e-07,80379.0,80378.0,0.761225]
[1744088192874,2e-07,80379.0,80378.0,0.354]
[1744088193081,0.3906509,80379.0,80378.0,0.014]
[1744088193875,0.3906509,80379.0,80371.0,0.012442]
[1744088194082,0.261273,80376.0,80371.0,0.012442]
[1744088194306,0.3906509,80379.0,80372.0,0.261284]
[1744088194503,0.012441,80376.0,80371.0,0.012442]
[1744088195068,0.012441,80376.0,80371.0,0.001]
[1744088195069,0.261274,80375.0,80371.0,0.001]
[1744088195688,0.261274,80375.0,80370.0,0.248848]
[1744088195865,0.261274,80375.0,80371.0,0.002]
[1744088196093,0.261274,80375.0,80372.0,0.001]
[1744088197165,0.248827,80377.0,80372.0,0.249841]
[1744088197368,0.248827,80377.0,80372.0,0.248841]
[1744088197580,0.248827,80377.0,80372.0,0.251841]
[1744088197922,2e-07,80379.0,80376.0,0.24883]
[1744088198053,2e-07,80379.0,80378.0,0.012441]
[1744088198242,2e-07,80379.0,80378.0,0.0652946]
[1744088198895,2e-07,80379.0,80378.0,0.40778261]
[1744088199105,2e-07,80379.0,80378.0,0.4052946]
[1744088199719,2e-07,80379.0,80378.0,0.352441]
[1744088200329,0.012441,80373.0,80366.0,0.261304]
[1744088200571,0.012441,80373.0,80364.0,0.352443]
[1744088200572,0.012442,80370.0,80364.0,0.352443]
[1744088200741,0.248849,80371.0,80364.0,0.352443]
[1744088200943,0.261291,80371.0,80364.0,0.352443]
[1744088201148,0.261291,80371.0,80365.0,0.012443]
[1744088201572,0.012442,80370.0,80366.0,0.34]
[1744088202207,0.012442,80368.0,80366.0,0.34]
[1744088202402,0.012442,80368.0,80364.0,0.004]
[1744088202403,0.012443,80365.0,80364.0,0.004]
[1744088203861,0.012443,80365.0,80364.0,0.007]
[1744088204396,0.261307,80365.0,80364.0,0.007]
[1744088204746,0.261291,80370.0,80364.0,0.007]
[1744088204956,0.261297,80368.0,80364.0,0.007]
[1744088205190,0.261297,80368.0,80364.0,0.014]
[1744088205391,0.012442,80367.0,80364.0,0.014]
[1744088205589,0.012442,80369.0,80364.0,0.007]
[1744088205794,0.261291,80370.0,80365.0,0.0770076]
[1744088206628,0.248845,80372.0,80366.0,0.248861]
[1744088206828,0.248845,80372.0,80365.0,0.0770076]
[1744088207539,0.248845,80372.0,80365.0,0.0820076]
[1744088207907,0.248845,80372.0,80365.0,0.021443]
[1744088208502,0.4242412,80379.0,80373.0,0.012441]
[1744088208853,0.261271,80377.0,80371.0,0.012442]
[1744088208999,0.012441,80376.0,80371.0,0.012442]
[1744088209468,0.1293887,80378.0,80372.0,0.012442]
[1744088209628,0.1293887,80378.0,80376.0,0.012441]
[1744088209830,0.1293887,80378.0,80375.0,0.248833]
[1744088210037,0.012441,80376.0,80371.0,0.012442]
[1744088210248,0.012441,80376.0,80371.0,0.261285]
[1744088210434,0.012441,80377.0,80371.0,0.263285]
[1744088211392,0.248831,80376.0,80371.0,0.263285]
[1744088211554,0.261272,80376.0,80372.0,0.0524585]
[1744088211944,0.261272,80376.0,80371.0,0.265285]
[1744088212348,0.012441,80375.0,80371.0,0.004]
[1744088212955,0.012441,80375.0,80371.0,0.002]
[1744088213155,0.012441,80375.0,80371.0,0.004]
[1744088213356,0.012441,80375.0,80371.0,0.002]
[1744088213753,0.012441,80375.0,80372.0,0.002]
[1744088214112,0.3906567,80378.0,80372.0,0.012442]
[1744088214319,0.1293887,80378.0,80373.0,0.0537026]
[1744088214474,0.1293887,80378.0,80374.0,0.248836]
[1744088214899,0.1293887,80378.0,80374.0,0.261277]
[1744088215276,0.1293887,80378.0,80376.0,0.248829]
[1744088215476,0.1293887,80378.0,80377.0,0.02473734]
[1744088215673,2e-07,80379.0,80378.0,0.012441]
[1744088215928,2e-07,80379.0,80378.0,0.261265]
[1744088217208,2e-07,80379.0,80378.0,0.262265]
[1744088218811,2e-07,80379.0,80378.0,0.001]
[1744088221320,0.0124412,80379.0,80378.0,0.001]
[1744088223020,2e-07,80379.0,80378.0,0.065797]
[1744088223234,2e-07,80379.0,80378.0,0.58327341]
[1744088223409,2e-07,80379.0,80378.0,0.5807857]
[1744088224140,2e-07,80379.0,80378.0,0.6286857]
[1744088224367,2e-07,80379.0,80378.0,0.65222655]
[1744088224642,2e-07,80379.0,80378.0,0.67532781]
[1744088224840,2e-07,80379.0,80378.0,0.66078696]
[1744088224996,2e-07,80379.0,80378.0,0.59843096]
[1744088225391,2e-07,80379.0,80378.0,0.61643096]
[1744088225585,2e-07,80379.0,80378.0,0.5933297]
[1744088226004,2e-07,80379.0,80378.0,0.6023297]
[1744088226761,2e-07,80379.0,80378.0,0.5933297]
[1744088227276,2e-07,80379.0,80378.0,0.6023297]
[1744088228677,2e-07,80379.0,80378.0,0.472941]
[1744088231105,2e-07,80379.0,80378.0,0.425041]
[1744088233631,2e-07,80379.0,80378.0,0.61547055]
[1744088233826,2e-07,80379.0,80378.0,0.471541]
[1744088234186,2e-07,80379.0,80378.0,0.379441]
[1744088234346,2e-07,80379.0,80378.0,0.039441]
[1744088234864,2e-07,80379.0,80378.0,0.027]
[1744088235267,2e-07,80379.0,80378.0,0.288265]
[1744088235479,2e-07,80379.0,80378.0,0.279265]
[1744088235649,2e-07,80379.0,80378.0,0.261265]
[1744088236388,2e-07,80379.0,80378.0,0.34570494]
[1744088236691,2e-07,80379.0,80378.0,0.267265]
[1744088236888,2e-07,80379.0,80378.0,0.276265]
[1744088237236,2e-07,80379.0,80378.0,0.267265]
[1744088237554,2e-07,80379.0,80378.0,0.273265]
[1744088238497,2e-07,80379.0,80378.0,0.613265]
[1744088239107,2e-07,80379.0,80378.0,0.7916537]
[1744088239267,2e-07,80379.0,80378.0,0.662265]
[1744088239683,2e-07,80379.0,80378.0,0.68536608]
[1744088240092,2e-07,80379.0,80378.0,0.81475478]
[1744088240647,2e-07,80379.0,80378.0,0.82630475]
[1744088252245,2e-07,80379.0,80378.0,0.81475478]
[1744088252529,2e-07,80379.0,80378.0,0.7916537]
[1744088252730,2e-07,80379.0,80378.0,0.662265]
[1744088252927,2e-07,80379.0,80378.0,0.273265]
[1744088253146,2e-07,80379.0,80378.0,0.260824]
[1744088253290,2e-07,80379.0,80378.0,0.273265]
[1744088253486,2e-07,80379.0,80378.0,0.024441]
[1744088253691,2e-07,80379.0,80378.0,0.273265]
[1744088254157,2e-07,80379.0,80378.0,0.024441]
[1744088254445,2e-07,80379.0,80378.0,0.012]
[1744088254647,2e-07,80379.0,80378.0,0.024441]
[1744088255406,2e-07,80379.0,80378.0,0.613265]
[1744088256558,2e-07,80379.0,80378.0,0.63641196]
[1744088261190,2e-07,80379.0,80378.0,0.613265]
[1744088261529,2e-07,80379.0,80378.0,0.012]
[1744088262076,2e-07,80379.0,80378.0,0.273265]
[1744088262414,2e-07,80379.0,80378.0,0.261265]
[1744088262632,2e-07,80379.0,80378.0,0.265265]
[1744088262910,2e-07,80379.0,80378.0,0.270265]
[1744088263559,2e-07,80379.0,80378.0,0.3350239]
[1744088263895,2e-07,80379.0,80378.0,0.6750239]
[1744088264585,2e-07,80379.0,80378.0,0.69816889]
[1744088265820,2e-07,80379.0,80378.0,0.70974049]
[1744088266047,2e-07,80379.0,80378.0,0.64498159]
[1744088267948,2e-07,80379.0,80378.0,0.64497993]
[1744088285061,2e-07,80379.0,80378.0,0.63997993]
[1744088285955,2e-07,80379.0,80378.0,0.04371493]
[1744088286136,2e-07,80379.0,80378.0,0.30497993]
[1744088286347,2e-07,80379.0,80378.0,0.29340999]
[1744088286551,2e-07,80379.0,80378.0,0.270265]
[1744088287200,2e-07,80379.0,80378.0,0.009]
[1744088287374,2e-07,80379.0,80378.0,0.257824]
[1744088288856,2e-07,80379.0,80378.0,0.009]
[1744088290838,0.31475622,80379.0,80378.0,0.009]
[1744088291042,0.49394492,80379.0,80378.0,0.009]
[1744088291926,0.49394492,80379.0,80378.0,0.005]
[1744088292049,0.261327,80359.0,80358.0,0.1105708]
[1744088292249,0.261319,80362.0,80358.0,0.1105708]
[1744088292451,0.0498,80363.0,80359.0,0.34]
[1744088292900,0.298671,80363.0,80359.0,0.34]
[1744088293106,0.298671,80363.0,80359.0,0.588882]
[1744088293495,0.298671,80363.0,80359.0,0.342]
[1744088293916,0.31010931,80363.0,80359.0,0.342]
[1744088294417,0.32255231,80363.0,80359.0,0.002]
[1744088295010,0.32255231,80363.0,80358.0,0.352444]
[1744088295207,0.07072026,80363.0,80359.0,0.248883]
[1744088295418,0.07072026,80363.0,80359.0,0.254883]
[1744088295910,0.07072026,80363.0,80359.0,0.264327]
[1744088297584,0.33203526,80363.0,80359.0,0.003]
[1744088297958,0.08316326,80363.0,80359.0,0.003]
[1744088298272,0.08316326,80363.0,80359.0,0.254882]
[1744088298699,0.08316326,80363.0,80359.0,0.006]
[1744088298700,0.012443,80362.0,80359.0,0.006]
[1744088299256,0.33203626,80363.0,80359.0,0.006]
[1744088299458,0.07072026,80363.0,80359.0,0.267327]
[1744088299715,0.07072026,80363.0,80359.0,0.261327]
[1744088299912,0.248898,80355.0,80348.0,0.261359]
[1744088300218,0.012445,80352.0,80348.0,4.193e-05]
[1744088300636,0.012445,80353.0,80348.0,0.01248693]
[1744088300829,0.261342,80355.0,80350.0,0.012445]
[1744088300830,0.012444,80355.0,80350.0,0.012445]
[1744088301124,0.261338,80356.0,80351.0,0.012445]
[1744088301345,0.261338,80356.0,80351.0,0.261352]
[1744088301707,0.261338,80356.0,80350.0,0.012445]
[1744088302086,0.261338,80356.0,80351.0,0.004]
[1744088302284,0.17819603,80358.0,80351.0,0.004]
[1744088302285,0.16575203,80358.0,80357.0,0.248889]
[1744088302485,0.02092026,80363.0,80360.0,0.24888]
[1744088302690,0.02092026,80363.0,80357.0,0.26133]
[1744088302691,0.012443,80363.0,80357.0,0.26133]
[1744088302943,0.248873,80362.0,80357.0,0.26133]
[1744088303648,0.248899,80354.0,80351.0,0.003]
[1744088303850,0.012445,80352.0,80350.0,0.004]
[1744088304771,0.261352,80352.0,80348.0,4.193e-05]
[1744088305355,0.261342,80354.0,80348.0,0.01248693]
[1744088305578,0.248904,80352.0,80348.0,0.01248693]
[1744088305782,0.261349,80352.0,80348.0,4.193e-05]
[1744088305995,0.261349,80352.0,80348.0,0.00504193]
[1744088306344,0.261349,80352.0,80348.0,4.193e-05]
[1744088307086,0.261349,80352.0,80348.0,0.00504193]
[1744088307396,0.1293887,80353.0,80348.0,0.00504193]
[1744088307597,0.248883,80360.0,80348.0,0.00504193]
[1744088307598,0.012443,80364.0,80352.0,0.261346]
[1744088307802,0.29514073,80361.0,80355.0,0.012444]
[1744088307957,0.54401973,80361.0,80355.0,0.012444]
[1744088308162,0.54401973,80361.0,80355.0,0.261339]
[1744088308163,0.3782677,80361.0,80355.0,0.261339]
[1744088308581,0.1293887,80361.0,80358.0,0.012444]
[1744088308813,0.02123327,80363.0,80362.0,0.261316]
[1744088309015,0.261291,80370.0,80362.0,0.261316]
[1744088309188,0.3782447,80368.0,80362.0,0.012443]
[1744088309392,0.012442,80367.0,80362.0,0.012443]
[1744088309589,0.1293887,80366.0,80362.0,0.012443]
[1744088309817,0.1293887,80366.0,80360.0,0.24888]
[1744088309818,0.3906927,80366.0,80360.0,0.24888]
[1744088312034,0.3906927,80366.0,80360.0,0.24988]
[1744088312256,0.3906927,80366.0,80360.0,0.262324]
[1744088313541,0.248867,80364.0,80360.0,0.013444]
[1744088313746,0.26131,80364.0,80360.0,0.001]
[1744088313953,0.34375662,80364.0,80360.0,0.001]
[1744088314360,0.34375662,80364.0,80359.0,0.012444]
[1744088314648,0.34375662,80364.0,80360.0,0.003]
[1744088315081,0.26131,80364.0,80360.0,0.003]
[1744088315198,0.012443,80364.0,80360.0,0.003]
[1744088315401,0.26131,80364.0,80360.0,0.003]
[1744088315762,0.012443,80364.0,80360.0,0.003]
[1744088315961,0.012443,80365.0,80360.0,0.003]
[1744088316167,0.1293887,80365.0,80360.0,0.015444]
[1744088316378,0.3782537,80365.0,80360.0,0.263321]
[1744088316567,0.3906967,80365.0,80360.0,0.263321]
[1744088316977,0.27306768,80367.0,80362.0,0.248873]
[1744088317153,0.40245638,80367.0,80362.0,0.248873]
[1744088317336,0.248871,80363.0,80360.0,0.003]
[1744088317535,0.012443,80363.0,80360.0,0.001]
[1744088317740,0.012443,80364.0,80360.0,0.001]
[1744088318047,0.012443,80364.0,80360.0,0.002]
[1744088318249,0.1418317,80366.0,80361.0,0.261319]
[1744088318808,0.012443,80364.0,80360.0,0.248879]
[1744088318926,0.248864,80365.0,80360.0,0.261323]
[1744088319131,0.261307,80365.0,80360.0,0.014444]
[1744088319426,0.261319,80362.0,80360.0,0.002]
[1744088319724,0.261314,80363.0,80360.0,0.002]
[1744088320983,0.261314,80363.0,80360.0,0.004]
[1744088321671,0.261314,80363.0,80361.0,0.001]
[1744088322120,0.1293887,80365.0,80361.0,0.001]
[1744088322336,0.1293887,80365.0,80363.0,0.0476]
[1744088323456,0.1418317,80365.0,80363.0,0.0476]
[1744088323843,0.3906987,80365.0,80363.0,0.0476]
[1744088324080,0.1418317,80365.0,80363.0,0.0476]
[1744088324229,0.02420668,80367.0,80363.0,0.0486]
[1744088324945,0.248861,80366.0,80363.0,0.0486]
[1744088325350,0.261304,80366.0,80363.0,0.0496]
[1744088326188,0.261304,80366.0,80363.0,0.0486]
[1744088326672,0.248867,80364.0,80363.0,0.0486]
[1744088327016,0.248867,80364.0,80363.0,0.0476]
[1744088327596,0.012443,80365.0,80363.0,0.0476]
[1744088327991,0.012443,80366.0,80363.0,0.0486]
[1744088328164,0.261307,80366.0,80363.0,0.0496]
[1744088328334,0.261307,80366.0,80363.0,0.0486]
[1744088328544,0.261307,80366.0,80363.0,0.0506]
[1744088328749,0.261307,80366.0,80363.0,0.0496]
[1744088328988,0.261307,80366.0,80363.0,0.0506]
[1744088329195,0.3906987,80365.0,80363.0,0.003]
[1744088329398,0.012443,80364.0,80363.0,0.003]
[1744088329559,0.1418317,80364.0,80363.0,0.003]
[1744088329760,0.1418317,80364.0,80363.0,0.004]
[1744088330771,0.1418317,80364.0,80363.0,0.003]
[1744088331031,0.1418317,80364.0,80347.0,0.012446]
[1744088331032,0.012445,80353.0,80347.0,0.012446]
[1744088331630,0.012445,80352.0,80347.0,0.012446]
[1744088331833,0.261352,80352.0,80347.0,0.012446]
[1744088332734,0.261352,80352.0,80348.0,0.00504193]
[1744088333439,0.261348,80353.0,80348.0,0.25395793]
[1744088333580,0.261348,80353.0,80348.0,0.27040293]
[1744088334180,0.261348,80353.0,80348.0,0.27140293]
[1744088334386,0.012445,80352.0,80348.0,0.01504193]
[1744088334584,0.261352,80351.0,80348.0,0.01004193]
[1744088334894,0.012445,80351.0,80348.0,0.01504193]
[1744088335055,0.261348,80353.0,80348.0,0.01004193]
[1744088335254,0.261348,80353.0,80348.0,0.01404193]
[1744088335697,0.261348,80353.0,80348.0,0.00404193]
[1744088335844,0.261348,80353.0,80348.0,0.01004193]
[1744088336523,0.248904,80352.0,80348.0,0.00404193]
[1744088336729,0.248904,80352.0,80348.0,4.193e-05]
[1744088336904,0.248904,80352.0,80348.0,0.00504193]
[1744088337608,0.248898,80354.0,80349.0,0.012445]
[1744088337804,0.261342,80354.0,80349.0,0.012445]
[1744088337964,0.261342,80354.0,80348.0,0.26640093]
[1744088338403,0.261342,80354.0,80348.0,0.27140093]
[1744088338614,0.261342,80354.0,80348.0,0.26640093]
[1744088338827,0.248892,80357.0,80351.0,0.012445]
[1744088339005,0.012444,80356.0,80351.0,0.012445]
[1744088339618,0.261339,80356.0,80351.0,0.012445]
[1744088339828,0.012445,80353.0,80348.0,0.01748693]
[1744088340618,0.012445,80353.0,80349.0,0.004]
[1744088340825,0.012445,80353.0,80351.0,0.004]
[1744088341445,0.012444,80354.0,80351.0,0.004]
[1744088341903,0.012444,80354.0,80349.0,0.261358]
[1744088342373,0.012444,80354.0,80351.0,0.005]
[1744088342678,0.012444,80354.0,80351.0,0.009]
[1744088343676,0.012444,80354.0,80351.0,0.004]
[1744088343976,0.012444,80354.0,80351.0,0.005]
[1744088344280,0.261342,80355.0,80351.0,0.005]
[1744088344438,0.261342,80355.0,80351.0,0.253907]
[1744088345058,0.261342,80355.0,80351.0,0.257907]
[1744088345273,0.261342,80355.0,80351.0,0.004]
[1744088345441,0.261342,80355.0,80349.0,0.261358]
[1744088345879,0.261342,80355.0,80351.0,0.004]
[1744088346092,0.261342,80355.0,80351.0,0.008]
[1744088346593,0.012444,80356.0,80351.0,0.256907]
[1744088346792,0.012444,80354.0,80351.0,0.008]
[1744088346988,0.012444,80354.0,80351.0,0.004]
[1744088346989,0.012445,80352.0,80351.0,0.004]
[1744088347591,0.261352,80351.0,80349.0,0.004]
[1744088347792,0.261352,80351.0,80349.0,0.008]
[1744088348106,0.012445,80350.0,80348.0,4.193e-05]
[1744088348911,0.012445,80349.0,80348.0,4.193e-05]
[1744088350510,0.1418337,80349.0,80348.0,4.193e-05]
[1744088350713,0.1418337,80349.0,80348.0,0.00504193]
[1744088350915,0.1418337,80349.0,80348.0,4.193e-05]
[1744088351096,0.1418337,80349.0,80348.0,0.00104193]
[1744088351296,0.1418337,80349.0,80348.0,0.00304193]
[1744088354758,0.1293887,80349.0,80348.0,0.00304193]
[1744088354962,0.3783027,80349.0,80348.0,0.00304193]
[1744088355110,0.3907477,80349.0,80348.0,0.00304193]
[1744088355514,0.47150675,80349.0,80348.0,0.00304193]
[1744088355916,0.3907477,80349.0,80348.0,0.00304193]
[1744088361574,0.4398477,80349.0,80348.0,0.00304193]
[1744088362577,0.3907477,80349.0,80348.0,0.00304193]
[1744088370519,0.1293887,80349.0,80348.0,0.00304193]
[1744088370941,0.1418337,80349.0,80348.0,0.00304193]
[1744088372445,0.1293887,80349.0,80348.0,0.00304193]
[1744088372871,0.1418337,80349.0,80348.0,0.00304193]
[1744088374640,0.158405,80352.0,80348.0,0.00304193]
[1744088374846,0.1418337,80351.0,80348.0,0.00304193]
[1744088375209,0.261358,80350.0,80348.0,0.00304193]
[1744088375747,0.261358,80350.0,80348.0,0.00104193]
[1744088376553,0.261358,80350.0,80348.0,4.193e-05]
[1744088377448,0.012445,80349.0,80348.0,4.193e-05]
[1744088377651,0.012445,80349.0,80348.0,0.00204193]